{"text_format":"1","workbook":"xlsx","n_sheets":4,"sheets":["SEPTIEMBRE","OCTUBRE","Resumen","menu"],"not_rendered":{"charts":0,"images":14,"macros":1,"external_links":0,"defined_names":6,"comments":1,"pivot_tables":0},"unopened":[],"bounds":{"document_bytes":16777216,"sheet_cells":100000,"rows_first":2000,"rows_last":500,"rows_between":2000,"halvings":0,"cell_chars":16384,"cell_head_chars":4096},"cells_cut":0,"cells_raw":0,"read":"whole","date_system":"1900"}

{"sheet":"SEPTIEMBRE","index":0,"n_rows":76,"n_cols":10,"rows_kept":76,"cut":false,"hidden":true,"merged":[[0,3,1,7],[2,0,2,10],[3,0,3,10],[4,0,4,2],[5,1,5,2],[5,3,5,8],[6,1,6,2],[6,3,6,4],[6,6,6,8],[7,0,7,2],[8,0,8,2],[8,3,8,6],[8,8,8,9],[9,1,9,2],[9,3,9,6],[9,8,9,9],[11,0,11,10],[15,9,15,10],[15,1,25,6],[15,7,15,8],[27,9,27,10],[29,1,29,2],[29,3,29,4],[29,7,29,8],[29,9,29,10],[27,1,27,2],[27,3,27,4],[27,5,27,6],[29,5,29,6],[27,7,27,8],[36,10,37,10],[39,3,39,4],[39,5,39,6],[39,7,39,8],[39,9,39,10],[36,2,37,2],[36,4,37,4],[36,8,37,8],[36,6,37,6],[39,1,49,2],[41,9,41,10],[48,4,49,4],[48,6,49,6],[48,8,49,8],[48,10,49,10],[41,3,41,4],[41,5,41,6],[41,7,41,8],[51,9,51,10],[53,1,53,2],[53,3,53,4],[53,7,53,8],[53,9,53,10],[53,5,53,6],[51,1,51,2],[51,3,51,4],[51,5,51,6],[51,7,51,8],[60,10,61,10],[63,1,63,2],[63,3,63,4],[63,5,63,6],[60,6,61,6],[72,2,73,2],[60,2,61,2],[60,4,61,4],[60,8,61,8],[64,1,64,2],[105,0,105,10],[106,0,106,10],[109,0,109,10],[63,7,63,8],[65,7,65,8],[72,8,73,8],[63,9,63,10],[65,9,65,10],[72,10,73,10],[65,3,65,4],[65,5,65,6],[72,6,73,6],[77,0,77,1],[78,0,81,9],[72,4,73,4],[65,1,65,2]]}
[null,null,null,"HAPPY LUNCHES SERVICE SAC \nCOLEGIO SANTA MARIA\nPRIMARIA"]
[]
["BCP CUENTA CORRIENTE: 194189468-2-00                                                         CODIGO INTERBANCARIO BCP: 002 194 00204619402594   \nBBVA CUENTA CORRIENTE: 0011-0149-0100033241-29                                           CODIGO INTERBANCARIO BBVA: 011 - 149 - 000100033241 - 29  "]
["FAVOR ENVIAR VOUCHER O TRANSFERENCIA ELECTRÓNICA A NUESTRO E-MAIL UNA VEZ REALIZADO EL ABONO EN NUESTRA CUENTA. GRACIAS POR SU COLABORACIÓN."]
[" DATOS DEL PADRE O APODERADO :"]
[{"$f":"CONCATENATE(SEPTIEMBRE!D9,\"  \")","v":"  "},"NOMBRES Y APELLIDOS:"]
[null,"TELÉFONO:","TELEFONO:",null,null,"CORREO ELECTRÓNICO:"]
["DATOS DEL ALUMNO                           :"]
["NOMBRES :",null,null,null,null,null,null,"GRADO Y SECCIÓN :"]
[null,"APELLIDOS :",null,null,null,null,null,"ALERGIAS :"]
[]
["IMPORTANTE: ES NECESARIO QUE LOS DATOS SOLICITADOS SEAN LLENADOS DE FORMA CORRECTA TANTO DEL TUTOR COMO DEL ALUMNO(A) . ELEGIR UNICAMENTE  LA OPCIÓN  EN LA FECHA  QUE DESEA EL SERVICIO,DE NO NECESITAR EL SERVICIO UN DÍA NO SELECCIONAR NINGUNA OPCIÓN ESE DÍA . YA QUE EL PROGRAMA CALCULARÁ LA CANTIDAD DE ALMUERZOS ELEGIDOS POR ALUMNO ASÍ COMO EL TOTAL A DEPOSITAR.\nEN CADA HOJA ELECTRÓNICA DEBE DE HABER SOLO UN ALUMNO.\nNO RE-ENVIAR SIN HABER GUARDADO EL DOCUMENTO DESPUÉS DE HECHA LA SELECCIÓN.\nCUALQUIER CANCELACION O SUSPENSION DE ALGUN ALMUERZO SE DEBE HACER HASTA 8.30 AM DEL MISMO DIA"]
[]
[]
["Opción","Lunes",null,"Martes",null,"Miércoles",null,"Jueves",null,"Viernes"]
[null,null,null,null,null,null,null,{"$f":"menu!P2","v":"1 DE SEPTIEMBRE"},null,{"$f":"menu!Q2","v":"2 DE SEPTIEMBRE"}]
[]
["Entrada",null,null,null,null,null,null,{"$f":"menu!H3","v":"WANTAN CON TAMARINDO "},null,{"$f":"menu!J3","v":"ENSALADA RUSA (SIN PAPA)"}]
["A",null,null,null,null,null,null,{"$f":"menu!H4","v":"ARROZ CHAUFA DE POLLO Y CARNE "},null,{"$f":"menu!J4","v":"POLLO SALTADO CON ARROZ"}]
["B",null,null,null,null,null,null,{"$f":"menu!H5","v":"CARAPULCRA GUISADA CON ARROZ "},null,{"$f":"menu!J5","v":"AJÍ DE GALLINA CON ARROZ "}]
["C",null,null,null,null,null,null,{"$f":"menu!H6","v":"POLLO A LA PLANCHA CON ARROZ CON VERDURAS"},null,{"$f":"menu!J6","v":"POLLO A LA PLANCHA CON SPAGUETTI A LO ALFREDO"}]
["D",null,null,null,null,null,null,{"$f":"menu!H7","v":"ENSALADA ITALIANA CON POLLO EN TIRAS"},null,{"$f":"menu!J7","v":"ENSALADA ORIENTAL CON POLLITO A LA PLANCHA"}]
["E",null,null,null,null,null,null,{"$f":"menu!H8","v":"POLLO A LA COCACOLA CON ARROZ PRIMAVERA"},null,{"$f":"menu!J8","v":"PIERNITAS DE POLLO CON PAPITAS"}]
["V",null,null,null,null,null,null,{"$f":"menu!H9","v":"ARROZ CHAUFA VEGETARIANO "},null,{"$f":"menu!J9","v":"SALTADO DE VERDURAS CON SOYA"}]
["postre",null,null,null,null,null,null,{"$f":"menu!H10","v":"FRUTA DE ESTACIÓN"},null,{"$f":"menu!J10","v":"GELATINA"}]
["refresco",null,null,null,null,null,null,{"$f":"menu!H11","v":"LIMONADA "},null,{"$f":"menu!J11","v":"MARACUYÁ"}]
[]
["Opción",{"$f":"menu!R2","v":"5 DE SEPTIEMBRE"},null,{"$f":"menu!S2","v":"6 DE SEPTIEMBRE"},null,{"$f":"menu!T2","v":"7 DE SEPTIEMBRE"},null,{"$f":"menu!U2","v":"8 DE SEPTIEMBRE"},null,{"$f":"menu!V2","v":"9 DE SEPTIEMBRE"}]
[]
["Entrada",{"$f":"menu!B13","v":"ENSALADA BRUSCHETTA"},null,{"$f":"menu!D13","v":"ENSALADA FRESCA"},null,{"$f":"menu!F13","v":"PAPA A LA HUANCAINA"},null,{"$f":"menu!H13","v":"ENSALADA DE PALTA"},null,{"$f":"menu!J13","v":"ENSALADA FRESCA"}]
["A",{"$f":"menu!B14","v":"TALLARINES SALTADOS ORIENTALES CON RES"},null,{"$f":"menu!D14","v":"ARROZ A LA JARDINERA CON CARNE GUISADA"},null,{"$f":"menu!F14","v":"ARROZ CON POLLO "},null,{"$f":"menu!H14","v":"SPAGHETTI EN SALSA ROJA CON POLLO"},null,{"$f":"menu!J14","v":"SECO DE RES CON ARROZ "}]
["B",{"$f":"menu!B15","v":"LENTEJITAS GUISADAS CON POLLO Y ARROZ PRIMAVERA"},null,{"$f":"menu!D15","v":"SPAGHETTI A LA BOLOGNESA "},null,{"$f":"menu!F15","v":"FRIJOLES ROJOS BATIDOS CON RES"},null,{"$f":"menu!H15","v":"ARROZ TAPADO CON PLATANITO A LA PLANCHA "},null,{"$f":"menu!J15","v":"GUISO DE POLLO CON ARROZ "}]
["C",{"$f":"menu!B16","v":"POLLO A LA PLANCHA CON ARROZ Y VERDURAS"},null,{"$f":"menu!D16","v":"POLLO A LA PLANCHA CON PURÉ DE PAPITA AMARILLA "},null,{"$f":"menu!F16","v":"POLLO A LA PLANCHA CON PAPITAS"},null,{"$f":"menu!H16","v":"POLLO A LA PLANCHA CON ARROZ A LA JARDINERA "},null,{"$f":"menu!J16","v":"LENTEJITAS GUISADAS CON POLLO A LA PLANCHA "}]
["D",{"$f":"menu!B17","v":"ENSALADA CÉSAR CON POLLO "},null,{"$f":"menu!D17","v":"WRAP DE POLLO Y PALTA "},null,{"$f":"menu!F17","v":"ENSALADA ORIENTAL CON POLLITO A LA PLANCHA "},null,{"$f":"menu!H17","v":"ENSALADA DE ATÚN "},null,{"$f":"menu!J17","v":"ENSALADA BRUSCHETTA CON PAVITA"}]
["E",{"$f":"menu!B18","v":"TORTILLAS DE ATÚN CON ARROZ Y VERDURAS"},null,{"$f":"menu!D18","v":"BISTECK CON CAMOTITOS "},null,{"$f":"menu!F18","v":"CHICKEN FINGERS CON PURÉ DE BETARRAGA"},null,{"$f":"menu!H18","v":"POLLITO AL HORNO CON CHOCLITO Y ARROZ"},null,{"$f":"menu!J18","v":"PECHUGA BBQ CON ZANAHORIAS Y ARROZ"}]
["V",{"$f":"menu!B19","v":"TORTILLA DE VERDURAS CON SOYA Y ARROZ "},null,{"$f":"menu!D19","v":"ARROZ CRIOLLO(ESTILO ARROZ CON POLLO)"},null,{"$f":"menu!F19","v":"ARVEJITAS VERDES CON HUEVITO A LA PLANCHA / ARROZ "},null,{"$f":"menu!H19","v":"MILANESA VEGETARIANA CON PAPITAS "},null,{"$f":"menu!J19","v":"FILETE VEGETARIANO CON SALSA DE VERDURAS Y ARROZ"}]
["postre",{"$f":"menu!B20","v":"FRUTA DE ESTACIÓN "},null,{"$f":"menu!D20","v":"MAZAMORRA MORADA"},null,{"$f":"menu!F20","v":"GALLETAS NATURALES"},null,{"$f":"menu!H20","v":"FLAN CON GELATINA"},null,{"$f":"menu!J20","v":"MINI PYE DE MANZANA"}]
["refresco",{"$f":"menu!B21","v":"LIMONADA"},null,{"$f":"menu!D21","v":"CHICHA MORADA"},null,{"$f":"menu!F21","v":"LIMONADA"},null,{"$f":"menu!H21","v":"NARANJADA"},null,{"$f":"menu!J21","v":"MARACUYÁ"}]
[]
["Opción","ANIVERSARIO",null,{"$f":"menu!X2","v":"13 DE SEPTIEMBRE"},null,{"$f":"menu!Y2","v":"14 DE SEPTIEMBRE"},null,{"$f":"menu!Z2","v":"15 DE SEPTIEMBRE"},null,{"$f":"menu!AA2","v":"16 DE SEPTIEMBRE"}]
[]
["Entrada",null,null,{"$f":"menu!D23","v":"CHOCLITO CON QUESO"},null,{"$f":"menu!F23","v":"HUEVITO RELLENO"},null,{"$f":"menu!H23","v":"ENSALADA FRESCA"},null,{"$f":"menu!J23","v":"ENSALADA DE COL"}]
["A",null,null,{"$f":"menu!D24","v":"POLLO AL SILLAO CON ARROZ PRIMAVERA"},null,{"$f":"menu!F24","v":"SPAGHETTI A LA CARBONARA CON POLLITO "},null,{"$f":"menu!H24","v":"POLLO AL HORNO CON ARROZ CON VERDURAS"},null,{"$f":"menu!J24","v":"SECO DE RES CON ARROZ "}]
["B",null,null,{"$f":"menu!D25","v":"CORDON BLEU DE POLLO CON ARROZ"},null,{"$f":"menu!F25","v":"ARROZ A LA JARDINERA CON GUISO DE RES"},null,{"$f":"menu!H25","v":"CARAPULCRA GUISADA CON RES"},null,{"$f":"menu!J25","v":"GUISO DE POLLO CON ARROZ "}]
["C",null,null,{"$f":"menu!D26","v":"POLLO A LA PLANCHA CON PAPAS DUQUESAS"},null,{"$f":"menu!F26","v":"POLLO A LA PLANCHA CON LENTEJITAS GUISADAS"},null,{"$f":"menu!H26","v":"POLLO A LA PLANCHA CON PURÉ DE PAPITA AMARILLA"},null,{"$f":"menu!J26","v":"POLLO A LA PLANCHA CON MACARRONES Y QUESO"}]
["D",null,null,{"$f":"menu!D27","v":"ENSALADA CRIOLLA CON POLLO A LA PLANCHA "},null,{"$f":"menu!F27","v":"ENSALADA COBB CON POLLO A LA PLANCHA"},null,{"$f":"menu!H27","v":"PALTA RELLENA CON POLLO MECHADO "},null,{"$f":"menu!J27","v":"ENSALADA RUSA CON PAVITA"}]
["E",null,null,{"$f":"menu!D28","v":"NUGGETS DE POLLO CON ARROZ PRIMAVERA"},null,{"$f":"menu!F28","v":"CHEESEBURGUER CON PAPITAS Y ENSALADA"},null,{"$f":"menu!H28","v":"PIERNITA CON YUQUITAS"},null,{"$f":"menu!J28","v":"PECHUGA BBQ CON ZANAHORIAS Y ARROZ"}]
["V",null,null,{"$f":"menu!D29","v":"CAUSA TRIPLE VEGETARIANA"},null,{"$f":"menu!F29","v":"CHOCLITO SALTADO VEGETARIANO"},null,{"$f":"menu!H29","v":"TALLARIN SALTADO VEGETARIANO"},null,{"$f":"menu!J29","v":"FILETE VEGETARIANO CON SALSA DE VERDURAS Y ARROZ"}]
["postre",null,null,{"$f":"menu!D30","v":"MINI PIONONO CON MANJAR"},null,{"$f":"menu!F30","v":"FRUTA DE ESTACIÓN"},null,{"$f":"menu!H30","v":"GELATINA"},null,{"$f":"menu!J30","v":"MINI PYE DE MANZANA"}]
["refresco",null,null,{"$f":"menu!D31","v":"NARANJADA"},null,{"$f":"menu!F31","v":"CHICHA MORADA"},null,{"$f":"menu!H31","v":"MARACUYÁ "},null,{"$f":"menu!J31","v":"NARANJADA"}]
[]
["Opción",{"$f":"menu!AB2","v":"19 DE SEPTIEMBRE"},null,{"$f":"menu!AC2","v":"20 DE SEPTIEMBRE"},null,{"$f":"menu!AD2","v":"21 DE SEPTIEMBRE"},null,{"$f":"menu!AE2","v":"22 DE SEPTIEMBRE"},null,{"$f":"menu!AF2","v":"23 DE SEPTIEMBRE"}]
[]
["Entrada",{"$f":"menu!B33","v":"HUEVITO A LA RUSA"},null,{"$f":"menu!D33","v":"PAN AL AJO"},null,{"$f":"menu!F33","v":"BOLICAUSITAS"},null,{"$f":"menu!H33","v":"ENSALADA MIXTA"},null,{"$f":"menu!J33","v":"ENSALADA DE TOMATE"}]
["A",{"$f":"menu!B34","v":"SECO DE RES CON ARROZ"},null,{"$f":"menu!D34","v":"LASAGNA A LA BOLOGNESA"},null,{"$f":"menu!F34","v":"PEPIAN DE CHOCLO CON TROZOS DE POLLO CON ARROZ"},null,{"$f":"menu!H34","v":"ALBÓNDIGAS A LA NAPOLITANA"},null,{"$f":"menu!J34","v":"SPAGHETTI A LA HUANCAINA CON LOMITO AL JUGO "}]
["B",{"$f":"menu!B35","v":"POLLO A LA COCA COLA CON ARROZ "},null,{"$f":"menu!D35","v":"PANAMITOS CON GUISITO DE POLLO"},null,{"$f":"menu!F35","v":"POLLITO SALTADO CON ARROZ"},null,{"$f":"menu!H35","v":"CAUCAU DE POLLO CON ARROZ"},null,{"$f":"menu!J35","v":"POLLO A LA MOSTAZA CON ARROZ"}]
["C",{"$f":"menu!B36","v":"POLLO A LA PLANCHA CON ARROZ A LA JARDINERA "},null,{"$f":"menu!D36","v":"POLLO A LA PLANCHA CON ENSALADA CALIENTE"},null,{"$f":"menu!F36","v":"POLLO A LA PLANCHA CON ARVEJITAS PARTIDAS"},null,{"$f":"menu!H36","v":"POLLO A LA PLANCHA CON PAPITAS"},null,{"$f":"menu!J36","v":"POLLO A LA PLANCHA CON VERDURAS SALTEADAS Y ARROZ"}]
["D",{"$f":"menu!B37","v":"PALTA RELLENA CON VERDURAS Y POLLO"},null,{"$f":"menu!D37","v":"ENSALADA CRIOLLA CON POLLITO A LA PLANCHA "},null,{"$f":"menu!F37","v":"ENSALADA RUSA CON PAVITA AL HORNO"},null,{"$f":"menu!H37","v":"TACO SALAD CON POLLO"},null,{"$f":"menu!J37","v":"ENSALADA WALDORF CON POLLO"}]
["E",{"$f":"menu!B38","v":"BISTECK CON PAPITAS"},null,{"$f":"menu!D38","v":"NUGGETS DE POLLO AL HORNO CON LENTEJAS "},null,{"$f":"menu!F38","v":"FISH FINGERS CON ARROZ Y VERDURAS"},null,{"$f":"menu!H38","v":"POLLO ANTICUCHADO CON CHOCLITO"},null,{"$f":"menu!J38","v":"CHICKEN FINGERS CON VERDURAS SALTEADAS"}]
["V",{"$f":"menu!B39","v":"ARROZ CHAUFA VEGETARIANO"},null,{"$f":"menu!D39","v":"HAMBURGUESA VEGETARIANA CON ARROZ "},null,{"$f":"menu!F39","v":"ARVEJITAS VERDES CON SALTADO VEGETARIANO"},null,{"$f":"menu!H39","v":"ESTOFADO VEGETARIANO CON ARROZ"},null,{"$f":"menu!J39","v":"COLIFLOR ARREBOSADA CON ARROZ"}]
["postre",{"$f":"menu!B40","v":"FRUTA DE ESTACIÓN "},null,{"$f":"menu!D40","v":"ARROZ CON LECHE"},null,{"$f":"menu!F40","v":"GELATINA"},null,{"$f":"menu!H40","v":"FLAN CON GELATINA"},null,{"$f":"menu!J40","v":"BOMBITAS HL "}]
["refresco",{"$f":"menu!B41","v":"CHICHA MORADA"},null,{"$f":"menu!D41","v":"LIMONADA"},null,{"$f":"menu!F41","v":"MARACUYÁ"},null,{"$f":"menu!H41","v":"LIMONADA"},null,{"$f":"menu!J41","v":"NARANJADA"}]
[]
["Opción",{"$f":"menu!AG2","v":"26 DE SEPTIEMBRE"},null,{"$f":"menu!AH2","v":"27 DE SEPTIEMBRE"},null,{"$f":"menu!AI2","v":"28 DE SEPTIEMBRE"},null,{"$f":"menu!AJ2","v":"29 DE SEPTIEMBRE"},null,{"$f":"menu!AK2","v":"30 DE SEPTIEMBRE"}]
[]
["Entrada",{"$f":"menu!B43","v":"HUEVO RELLENO"},null,{"$f":"menu!D43","v":"ENSALADA CAPRESSE"},null,{"$f":"menu!F43","v":"TORTILLA ESPAÑOLA"},null,{"$f":"menu!H43","v":"ENSALADA ORIENTAL "},null,{"$f":"menu!J43","v":"ENSALADA FRESCA"}]
["A",{"$f":"menu!B44","v":"BISTECK CON PAPAS DORADAS Y ARROZ PRIMAVERA"},null,{"$f":"menu!D44","v":"TALLARINES SALTADOS CON CARNE"},null,{"$f":"menu!F44","v":"ESTOFADO DE RES CON ARROZ"},null,{"$f":"menu!H44","v":"SPAGHETTI AL PESTO CON BISTECK "},null,{"$f":"menu!J44","v":"PAPA RELLENA CON RES /VERDURAS"}]
["B",{"$f":"menu!B45","v":"SPAGHETTI A LO ALFREDO CON POLLITO EN CUBOS"},null,{"$f":"menu!D45","v":"POLLO AL SILLAO CON ARROZ PRIMAVERA"},null,{"$f":"menu!F45","v":"POLLITO ANTICUCHADO CON PAPAS AL HORNO"},null,{"$f":"menu!H45","v":"MILANESA DE PESCADO CON ARROZ CON VERDURAS"},null,{"$f":"menu!J45","v":"OLLUQUITOS GUISADOS CON RES"}]
["C",{"$f":"menu!B46","v":"FILETE DE POLLO A LA PLANCHA , ARROZ Y VERDURAS"},null,{"$f":"menu!D46","v":"FILETE DE POLLO A LA PLANCHA , ARROZ Y VERDURAS"},null,{"$f":"menu!F46","v":"POLLO A LA PLANCHA CON PURÉ DE PAPITA AMARILLA"},null,{"$f":"menu!H46","v":"POLLO A LA PLANCHA CON ENSALADA CALIENTE"},null,{"$f":"menu!J46","v":"POLLO A LA PLANCHA CON PAPAS HORNO"}]
["D",{"$f":"menu!B47","v":"CAUSA RELLENA DE VERDURAS Y POLLO "},null,{"$f":"menu!D47","v":"ENSALADA DE CAIHUA CON POLLO A LA PLANCHA "},null,{"$f":"menu!F47","v":"ENSALADA FRESCA CON POLLO A LA PLANCHA "},null,{"$f":"menu!H47","v":"ENSALADA CÉSAR CON POLLO A LA PLANCHA"},null,{"$f":"menu!J47","v":"ENSALADA DE ATÚN"}]
["E",{"$f":"menu!B48","v":"MILANESA DE PESCADO CON ARROZ PRIMAVERA"},null,{"$f":"menu!D48","v":"POLLO CON PIÑA / ARROZ CHAUFA"},null,{"$f":"menu!F48","v":"BBQ WINGS CON PAPITAS"},null,{"$f":"menu!H48","v":"NUGGETS DE POLLO AL HORNO CON PAPITAS"},null,{"$f":"menu!J48","v":"PURÉ DE PAPITA AMARILLA CON POLLO AL HORNO"}]
["V",{"$f":"menu!B49","v":"GLUTEN CON SALSA DE VERDURAS Y ARROZ"},null,{"$f":"menu!D49","v":"SALTADO DE VAINITAS VEGETARIANO"},null,{"$f":"menu!F49","v":"TORTILLA VEGETARIANA CON ARROZ "},null,{"$f":"menu!H49","v":"SPAGHETTI AL PESTO CON SOYA"},null,{"$f":"menu!J49","v":"LOCRO DE ZAPALLO"}]
["postre",{"$f":"menu!B50","v":"FRUTA DE ESTACIÓN"},null,{"$f":"menu!D50","v":"GELATINA"},null,{"$f":"menu!F50","v":"MINI PYE DE MANZANA"},null,{"$f":"menu!H50","v":"QUEQUE DE ZANAHORIA"},null,{"$f":"menu!J50","v":"FRUTA DE ESTACIÓN"}]
["refresco",{"$f":"menu!B51","v":"LIMONADA"},null,{"$f":"menu!D51","v":"CHICHA MORADA"},null,{"$f":"menu!F51","v":"NARANJADA"},null,{"$f":"menu!H51","v":"MARACUYÁ "},null,{"$f":"menu!J51","v":"LIMONADA"}]
[]
[null,null,null,null,null,null,null,"Limpiar  Pedidos"]

{"sheet":"OCTUBRE","index":1,"n_rows":76,"n_cols":10,"rows_kept":76,"cut":false,"hidden":false,"merged":[[53,1,53,2],[53,3,53,4],[53,7,53,8],[53,9,53,10],[27,1,37,2],[36,4,37,4],[36,8,37,8],[36,10,37,10],[51,7,51,8],[51,9,51,10],[39,1,39,2],[39,3,39,4],[39,5,39,6],[39,7,39,8],[39,9,39,10],[41,1,41,2],[63,1,63,2],[60,2,61,2],[60,4,61,4],[60,8,61,8],[60,10,61,10],[106,0,106,10],[109,0,109,10],[77,0,77,1],[78,0,81,9],[105,0,105,10],[41,3,41,4],[41,5,41,6],[41,7,41,8],[41,9,41,10],[9,1,9,2],[9,3,9,6],[9,8,9,9],[11,0,11,10],[29,3,29,4],[29,7,29,8],[29,9,29,10],[27,3,27,4],[27,7,27,8],[27,9,27,10],[15,1,25,10],[6,1,6,2],[6,3,6,4],[6,6,6,8],[7,0,7,2],[8,0,8,2],[8,3,8,6],[8,8,8,9],[0,3,1,7],[2,0,2,10],[3,0,3,10],[4,0,4,2],[5,1,5,2],[5,3,5,8],[65,1,65,2],[72,2,73,2],[63,3,73,10],[27,5,27,6],[51,1,51,2],[51,3,51,4],[51,5,51,6],[29,5,29,6],[36,6,37,6],[53,5,53,6],[60,6,61,6],[48,2,49,2],[48,4,49,4],[48,6,49,6],[48,8,49,8],[48,10,49,10]]}
[null,null,null,"HAPPY LUNCHES SERVICE SAC \nCOLEGIO SANTA MARIA\nPRIMARIA"]
[]
["BCP CUENTA CORRIENTE: 194189468-2-00                                                         CODIGO INTERBANCARIO BCP: 002 194 00204619402594   \nBBVA CUENTA CORRIENTE: 0011-0149-0100033241-29                                           CODIGO INTERBANCARIO BBVA: 011 - 149 - 000100033241 - 29  "]
["FAVOR ENVIAR VOUCHER O TRANSFERENCIA ELECTRÓNICA A NUESTRO E-MAIL UNA VEZ REALIZADO EL ABONO EN NUESTRA CUENTA. GRACIAS POR SU COLABORACIÓN."]
[" DATOS DEL PADRE O APODERADO :"]
[null,"NOMBRES Y APELLIDOS:"]
[null,"TELÉFONO:","TELEFONO:",null,null,"CORREO ELECTRÓNICO:"]
["DATOS DEL ALUMNO                           :"]
["NOMBRES :",null,null,null,null,null,null,"GRADO Y SECCIÓN :"]
[null,"APELLIDOS :",null,null,null,null,null,"ALERGIAS :"]
[]
["IMPORTANTE: ES NECESARIO QUE LOS DATOS SOLICITADOS SEAN LLENADOS DE FORMA CORRECTA TANTO DEL TUTOR COMO DEL ALUMNO(A) . ELEGIR UNICAMENTE  LA OPCIÓN  EN LA FECHA  QUE DESEA EL SERVICIO,DE NO NECESITAR EL SERVICIO UN DÍA NO SELECCIONAR NINGUNA OPCIÓN ESE DÍA . YA QUE EL PROGRAMA CALCULARÁ LA CANTIDAD DE ALMUERZOS ELEGIDOS POR ALUMNO ASÍ COMO EL TOTAL A DEPOSITAR.\nEN CADA HOJA ELECTRÓNICA DEBE DE HABER SOLO UN ALUMNO.\nNO RE-ENVIAR SIN HABER GUARDADO EL DOCUMENTO DESPUÉS DE HECHA LA SELECCIÓN.\nCUALQUIER CANCELACION O SUSPENSION DE ALGUN ALMUERZO SE DEBE HACER HASTA 8.30 AM DEL MISMO DIA"]
[]
[]
["Opción","Lunes",null,"Martes",null,"Miércoles",null,"Jueves",null,"Viernes"]
[null,"VACACIONES"]
[]
["Entrada"]
["A"]
["B"]
["C"]
["D"]
["E"]
["V"]
["postre"]
["refresco"]
[]
["Opción","VACACIONES",null,{"$f":"menu!S4","v":"11 DE OCTUBRE"},null,{"$f":"menu!T4","v":"12 DE OCTUBRE"},null,{"$f":"menu!U4","v":"13 DE OCTUBRE"},null,{"$f":"menu!V4","v":"14 DE OCTUBRE"}]
[]
["Entrada",null,null,{"$f":"menu!D63","v":"HUEVITO EN SALSA DE OCOPA"},null,{"$f":"menu!F63","v":"MINI ENSALADA CÉSAR"},null,{"$f":"menu!H63","v":"WANTAN CON TAMARINDO "},null,{"$f":"menu!J63","v":"ENSALADA DE VERDURAS"}]
["A",null,null,{"$f":"menu!D64","v":"FRIJOLES CON GUISITO DE POLLO "},null,{"$f":"menu!F64","v":"OLLUQUITOS GUISADOS CON RES Y ARROZ BLANCO "},null,{"$f":"menu!H64","v":"ARROZ CHAUFA DE POLLO Y CARNE "},null,{"$f":"menu!J64","v":"SPAGHETTI AL PESTO CON BISTECK "}]
["B",null,null,{"$f":"menu!D65","v":"POLLO A LA MOSTAZA CON ARROZ "},null,{"$f":"menu!F65","v":"PAPA RELLENA DE POLLO CON ARROZ"},null,{"$f":"menu!H65","v":"CARAPULCRA GUISADA CON ARROZ "},null,{"$f":"menu!J65","v":"POLLITO SALTADO CON ARROZ BLANCO "}]
["C",null,null,{"$f":"menu!D66","v":"POLLO A LA PLANCHA CON VERDURAS Y ARROZ "},null,{"$f":"menu!F66","v":"POLLO A LA PLANCHA CON SPAGHETTI A LO ALFREDO"},null,{"$f":"menu!H66","v":"POLLO A LA PLANCHA CON ARROZ CON VERDURAS"},null,{"$f":"menu!J66","v":"POLLO A LA PLANCHA CON PAPAS DORADAS"}]
["D",null,null,{"$f":"menu!D67","v":"ENSALADA CÉSAR CON POLLO A LA PLANCHA "},null,{"$f":"menu!F67","v":"ENSALADA RUSA CON PAVITA AL HORNO "},null,{"$f":"menu!H67","v":"ENSALADA ITALIANA CON POLLO EN TIRAS"},null,{"$f":"menu!J67","v":"ENSALADA DE ATÚN "}]
["E",null,null,{"$f":"menu!D68","v":"POLLO AL ROMERO CON ARROZ Y VERDURAS"},null,{"$f":"menu!F68","v":"TORTILLA DE ATÚN CON ARROZ PRIMAVERA"},null,{"$f":"menu!H68","v":"POLLO A LA COCACOLA CON ARROZ PRIMAVERA"},null,{"$f":"menu!J68","v":"POLLO ANTICUCHADO CON ARROZ "}]
["V",null,null,{"$f":"menu!D69","v":"TORTILLA DE COLIFLOR CON ARROZ "},null,{"$f":"menu!F69","v":"ESTOFADO VEGETARIANO "},null,{"$f":"menu!H69","v":"ARROZ CRIOLLO VEGETARIANO"},null,{"$f":"menu!J69","v":"PIZZA DE JAMÓN Y QUESO Y ENSALADITA FRESCA"}]
["postre",null,null,{"$f":"menu!D70","v":"FRUTA DE ESTACIÓN "},null,{"$f":"menu!F70","v":"GELATINA CON FLAN "},null,{"$f":"menu!H70","v":"ARROZ CON LECHE"},null,{"$f":"menu!J70","v":"QUEQUE DE FRUTAS"}]
["refresco",null,null,{"$f":"menu!D71","v":"CHICHA MORADA"},null,{"$f":"menu!F71","v":"NARANJADA"},null,{"$f":"menu!H71","v":"LIMONADA "},null,{"$f":"menu!J71","v":"MARACUYÁ "}]
[]
["Opción",{"$f":"menu!W4","v":"17 DE OCTUBRE"},null,{"$f":"menu!X4","v":"18 DE OCTUBRE"},null,{"$f":"menu!Y4","v":"19 DE OCTUBRE"},null,{"$f":"menu!Z4","v":"20 DE OCTUBRE"},null,{"$f":"menu!AA4","v":"21 DE OCTUBRE"}]
[]
["Entrada",{"$f":"menu!B73","v":"TEQUEÑOS CON GUACAMOLE"},null,{"$f":"menu!D73","v":"PAPA A LA HUANCAINA"},null,{"$f":"menu!F73","v":"SOUFFLÉ DE VERDURAS"},null,{"$f":"menu!H73","v":"MINI QUESADILLA"},null,{"$f":"menu!J73","v":"ENSALADA DE BROCOLÍ"}]
["A",{"$f":"menu!B74","v":"POLLO AL HORNO CON PAPAS AL ROMERO"},null,{"$f":"menu!D74","v":"LENTEJITAS CON GUISITO DE RES"},null,{"$f":"menu!F74","v":"POLLO A LA OLLA CON ARROZ CON VERDURAS"},null,{"$f":"menu!H74","v":"POLLITO STROGONOFF CON ARROZ"},null,{"$f":"menu!J74","v":"SECO A LA NORTEÑA CON ARROZ "}]
["B",{"$f":"menu!B75","v":"HAMBURGUESA AL PLATO CON ARROZ"},null,{"$f":"menu!D75","v":"ARROZ CON POLLO "},null,{"$f":"menu!F75","v":"POLLO A LA REINA CON ARROZ"},null,{"$f":"menu!H75","v":"GUISO DE CARNE CON ARROZ "},null,{"$f":"menu!J75","v":"SALTADO DE COLIFLOR CON POLLITO Y ARROZ"}]
["C",{"$f":"menu!B76","v":"POLLO A LA PLANCHA CON ENSALADA CALIENTE "},null,{"$f":"menu!D76","v":"POLLO A LA PLANCHA CON PAPITAS"},null,{"$f":"menu!F76","v":"POLLO A LA PLANCHA CON ARROZ A LA JARDINERA"},null,{"$f":"menu!H76","v":"POLLO A LA PLANCHA CON VERDURAS"},null,{"$f":"menu!J76","v":"POLLO A LA PLANCHA CON YUQUITAS DORADAS"}]
["D",{"$f":"menu!B77","v":"ENSALADA CON ACEITUNAS Y POLLO "},null,{"$f":"menu!D77","v":"ENSALADA ORIENTAL CON POLLITO"},null,{"$f":"menu!F77","v":"ENSALADA DE CAIGUA CON POLLITO "},null,{"$f":"menu!H77","v":"ENSALADA DE QUINUA CON POLLO EN CUBOS"},null,{"$f":"menu!J77","v":"PALTA A LA REINA CON POLLO"}]
["E",{"$f":"menu!B78","v":"MILANESA DE PESCADO CON ARROZ CON VERDURAS"},null,{"$f":"menu!D78","v":"PIZZADILLAS DE JAMÓN Y QUESO CON NACHOS"},null,{"$f":"menu!F78","v":"PIZZA CLÁSICA CON ENSALADITA FRESCA"},null,{"$f":"menu!H78","v":"NUGGETS DE POLLO CON PAPITAS"},null,{"$f":"menu!J78","v":"ARROZ CHAUFA CON POLLITO CHI JAU KAY"}]
["V",{"$f":"menu!B79","v":"GUISO VEGETARIANO CON ARROZ"},null,{"$f":"menu!D79","v":"HAMBURGUESA VEGETARIANA AL PLATO "},null,{"$f":"menu!F79","v":"ARROZ TAPADO VEGETARIANO"},null,{"$f":"menu!H79","v":"PURÉ DE PAPITA AMARILLA CON GUISITO VEGETARIANO"},null,{"$f":"menu!J79","v":"SPAGHETTI AL PESTO"}]
["postre",{"$f":"menu!B80","v":"MINI PYE DE MANZANA "},null,{"$f":"menu!D80","v":"FRUTA DE ESTACIÓN "},null,{"$f":"menu!F80","v":"FLAN  "},null,{"$f":"menu!H80","v":"GELATINA "},null,{"$f":"menu!J80","v":"GALLETAS NATURALES"}]
["refresco",{"$f":"menu!B81","v":"LIMONADA"},null,{"$f":"menu!D81","v":"CHICHA MORADA"},null,{"$f":"menu!F81","v":"NARANJADA"},null,{"$f":"menu!H81","v":"MARACUYÁ "},null,{"$f":"menu!J81","v":"AGUA MINERAL "}]
[]
["Opción",{"$f":"menu!AB4","v":"24 DE OCTUBRE"},null,{"$f":"menu!AC4","v":"25 DE OCTUBRE"},null,{"$f":"menu!AD4","v":"26 DE OCTUBRE"},null,{"$f":"menu!AE4","v":"27 DE OCTUBRE"},null,{"$f":"menu!AF4","v":"28 DE OCTUBRE"}]
[]
["Entrada",{"$f":"menu!B83","v":"ENSALADA BRUSCHETTA"},null,{"$f":"menu!D83","v":"SOLTERITO "},null,{"$f":"menu!F83","v":"ENSALADA CAPRESSE"},null,{"$f":"menu!H83","v":"ENSALADA ORIENTAL"},null,{"$f":"menu!J83","v":"PAN AL AJO "}]
["A",{"$f":"menu!B84","v":"TALLARINES SALTADOS ORIENTALES CON RES"},null,{"$f":"menu!D84","v":"CAIGUA RELLENA DE RES CON ARROZ "},null,{"$f":"menu!F84","v":"TACU TACU CON SECO DE RES "},null,{"$f":"menu!H84","v":"ESCABECHE DE POLLO CON ARROZ "},null,{"$f":"menu!J84","v":"LOCRO DE ZAPALLO "}]
["B",{"$f":"menu!B85","v":"ALBONDIGAS CON ARROZ A LA JARDINERA"},null,{"$f":"menu!D85","v":"TRIGO GUISADO CON QUESITO Y TROZOS DE POLLITO Y ARROZ"},null,{"$f":"menu!F85","v":"POLLO A LA CASEROLA CON ARROZ "},null,{"$f":"menu!H85","v":"POLLO CON PIÑA Y ARROZ CHAUFA"},null,{"$f":"menu!J85","v":"SPAGHETTI A LA BOLOGNESA"}]
["C",{"$f":"menu!B86","v":"POLLO A LA PLANCHA CON ARROZ Y VERDURAS"},null,{"$f":"menu!D86","v":"POLLO A LA PLANCHA CON VERDURAS"},null,{"$f":"menu!F86","v":"POLLO A LA PLANCHA CON ARROZ "},null,{"$f":"menu!H86","v":"POLLO A LA PLANCHA CON PAPAS DORADAS"},null,{"$f":"menu!J86","v":"POLLO A LA PLANCHA CON ARROZ PRIMAVERA"}]
["D",{"$f":"menu!B87","v":"ENSALADA CÉSAR CON POLLO "},null,{"$f":"menu!D87","v":"ENSALADA MIXTA CON POLLO A LA PLANCHA "},null,{"$f":"menu!F87","v":"ENSALADA DE ESPINACA CON POLLO EN TIRAS"},null,{"$f":"menu!H87","v":"ENSALADA ORIENTAL CON POLLO "},null,{"$f":"menu!J87","v":"ENSALADA RUSA CON PAVITA"}]
["E",{"$f":"menu!B88","v":"TORTILLAS DE ATÚN CON ARROZ Y VERDURAS"},null,{"$f":"menu!D88","v":"POLLO A LA COCACOLA CON ARROZ "},null,{"$f":"menu!F88","v":"POLLO AL HORNO CON PURÉ "},null,{"$f":"menu!H88","v":"MILANESA DE PESCADO CON ARROZ Y VERDURAS"},null,{"$f":"menu!J88","v":"MILANESA DE POLLO CON PAPITAS"}]
["V",{"$f":"menu!B89","v":"TORTILLA DE VERDURAS CON SOYA Y ARROZ "},null,{"$f":"menu!D89","v":"CAUSA VEGETARIANA"},null,{"$f":"menu!F89","v":"SECO VEGETARIANO CON ARROZ "},null,{"$f":"menu!H89","v":"SALTADO VEGETARIANO "},null,{"$f":"menu!J89","v":"ARROZ CHAUFA VEGETARIANO"}]
["postre",{"$f":"menu!B90","v":"FRUTA DE ESTACIÓN "},null,{"$f":"menu!D90","v":"GALLETAS NATURALES"},null,{"$f":"menu!F90","v":"GELATINA"},null,{"$f":"menu!H90","v":"FRUTA DE ESTACIÓN"},null,{"$f":"menu!J90","v":"GELATINA CON FLAN"}]
["refresco",{"$f":"menu!B91","v":"LIMONADA"},null,{"$f":"menu!D91","v":"CHICHA MORADA"},null,{"$f":"menu!F91","v":"NARANJADA"},null,{"$f":"menu!H91","v":"LIMONADA"},null,{"$f":"menu!J91","v":"MARACUYÁ"}]
[]
["Opción",{"$f":"menu!AG4","v":"31 DE OCTUBRE"}]
[]
["Entrada",{"$f":"menu!B93","v":"TORTILLA ESPAÑOLA"}]
["A",{"$f":"menu!B94","v":"POLLO AL SILLAO CON ARROZ PRIMAVERA"}]
["B",{"$f":"menu!B95","v":"PAELLA DE POLLO Y RES"}]
["C",{"$f":"menu!B96","v":"POLLO A LA PLANCHA CON SPAGUETTI A LO ALFREDO"}]
["D",{"$f":"menu!B97","v":"ENSALADA COCIDA CON POLLITO"}]
["E",{"$f":"menu!B98","v":"PIERNITAS DE POLLO CON PAPITAS"}]
["V",{"$f":"menu!B99","v":"CAIGUA VEGETARIANA CON ARROZ"}]
["postre",{"$f":"menu!B40","v":"FRUTA DE ESTACIÓN "}]
["refresco",{"$f":"menu!B41","v":"CHICHA MORADA"}]
[]
[null,null,null,null,null,null,null,"Limpiar  Pedidos"]

{"sheet":"Resumen","index":2,"n_rows":29,"n_cols":36,"rows_kept":29,"cut":false,"hidden":false,"merged":[[0,0,1,29],[17,1,17,29],[18,1,18,29],[8,0,10,27],[13,0,16,29],[12,0,12,29],[5,28,7,28],[5,0,7,0],[5,1,7,1],[6,2,6,7],[2,2,2,7],[29,11,30,29],[24,0,24,29],[25,0,25,29],[28,0,28,29],[26,11,27,29]]}
["No se aceptarán nuevos pedidos ni cambios de opción con menos de 03 días (72 horas) de anticipación, excepto dietas por enfermedad"]
[]
["NOMBRES Y APELLIDOS","SECCION Y GRADO","VACACIONES",null,null,null,null,null,"11 DE OCTUBRE","12 DE OCTUBRE","13 DE OCTUBRE","14 DE OCTUBRE","17 DE OCTUBRE","18 DE OCTUBRE","19 DE OCTUBRE","20 DE OCTUBRE","21 DE OCTUBRE","24 DE OCTUBRE","25 DE OCTUBRE","26 DE OCTUBRE","27 DE OCTUBRE","28 DE OCTUBRE","31 DE OCTUBRE",null,null,null,null,"Número de Almuerzos","COSTO DIARIO ","Total Soles"]
["2DO MES"]
["1ER MES"]
[{"$f":"CONCATENATE(OCTUBRE!D9,\" \",OCTUBRE!D10)","v":" "},{"$f":"OCTUBRE!I9","v":0},{"$f":"IF(C4=1,\"A\",IF(C4=2,\"B\",IF(C4=3,\"C\",IF(C4=4,\"D\",IF(C4=5,\"E\",IF(C4=6,\"V\",\"\"))))))","v":""},{"$f":"IF(D4=1,\"A\",IF(D4=2,\"B\",IF(D4=3,\"C\",IF(D4=4,\"D\",IF(D4=5,\"E\",IF(D4=6,\"V\",\"\"))))))","v":""},"","","","","","","","","","","","","","","","","","","","","","","",{"$f":"COUNTA(C4:AA4)","v":0},11.5,{"$f":"AB6*AC6","v":0},{"$f":"COUNTIF(C6:Z6,\"a\")","v":0},{"$f":"COUNTIF(C6:Z6,\"z\")","v":0},{"$f":"COUNTIF(C6:Z6,\"b\")","v":0},{"$f":"COUNTIF(C6:Z6,\"c\")","v":0},{"$f":"COUNTIF(C6:Z6,\"d\")","v":0},{"$f":"COUNTIF(C6:Z6,\"e\")","v":0}]
[null,null,"VACACIONES",null,null,null,null,null,"11 DE OCTUBRE","12 DE OCTUBRE","13 DE OCTUBRE","14 DE OCTUBRE","17 DE OCTUBRE","18 DE OCTUBRE","19 DE OCTUBRE","20 DE OCTUBRE","21 DE OCTUBRE","24 DE OCTUBRE","25 DE OCTUBRE","26 DE OCTUBRE","27 DE OCTUBRE","28 DE OCTUBRE","31 DE OCTUBRE"]
[null,null,{"$f":"IF(C4=1,\"A\",IF(C4=2,\"B\",IF(C4=3,\"C\",IF(C4=4,\"D\",IF(C4=5,\"E\",IF(C4=6,\"V\",\"\"))))))","v":""},"","","","","","","","","","","","","","","","","","","","","","",null,null,{"$f":"COUNTA(C4:AA4)","v":0},null,{"$f":"AB8*AC6","v":0}]
["RECUERDE QUE DESPUES DE ENVIAR SU PEDIDO (E-MAIL) TIENE 05 DIAS UTILES PARA ENVIARNOS SU VOUCHER O TRANSFERENCIA DE PAGO MEDIANTE E-MAIL.\nLA MORA SE COBRA SOLO  DESPUES DEL 5TO DIA DE SERVICIO  EN CASO USTED NO REALICE EL ABONO.",null,null,null,null,null,null,null,null,null,null,null,null,null,null,null,null,null,null,null,null,null,null,null,null,null,null,null,"TOTAL ",{"$f":"SUM(AD6)","v":0}]
[null,null,null,null,null,null,null,null,null,null,null,null,null,null,null,null,null,null,null,null,null,null,null,null,null,null,null,null,null,{"$f":"12","v":12}]
[null,null,null,null,null,null,null,null,null,null,null,null,null,null,null,null,null,null,null,null,null,null,null,null,null,null,null,null,"PAGO CON MORA "]
[]
["RESUMEN DE PEDIDO TOTAL:"]
["          CORREO ELECTRÓNICO:\n lunch-sm@happylunchesservice.com"]
[]
[]
[]
[]
[]
[]
[]
[]
[]
[]
["HORARIO DE ATENCIÓN AL CLIENTE: TELÉFONOS FIJOS - LUNES A VIERNES DE 7AM - 4PM    CELULARES: 7AM - 4PM"]
["Teléfonos:  445-8009  ó  250-8990         Maite Valdivia: 922-126-906"]
[]
[]
["Encuentre el menú en :    www.happylunchesservice.com"]

{"sheet":"menu","index":3,"n_rows":101,"n_cols":37,"rows_kept":101,"cut":false,"hidden":true,"merged":[[91,0,91,1],[91,2,91,3],[91,4,91,5],[91,6,91,7],[91,8,91,9],[81,0,81,1],[81,2,81,3],[81,4,81,5],[81,6,81,7],[81,8,81,9],[71,0,71,1],[71,2,71,3],[71,4,71,5],[71,6,71,7],[71,8,71,9],[51,0,51,1],[51,2,51,3],[51,4,51,5],[51,6,51,7],[51,8,51,9],[61,0,61,1],[61,2,61,3],[61,4,61,5],[61,6,61,7],[61,8,61,9],[41,8,41,9],[11,8,11,9],[11,0,11,1],[41,0,41,1],[41,4,41,5],[41,6,41,7],[41,2,41,3],[31,4,31,5],[31,6,31,7],[0,0,0,9],[21,4,21,5],[21,6,21,7],[21,8,21,9],[31,2,31,3],[31,8,31,9],[21,0,21,1],[31,0,31,1],[11,6,11,7],[11,2,11,3],[11,4,11,5],[21,2,21,3]]}
[]
["OPCIONES",null,"OPCIONES",null,"OPCIONES",null,"OPCIONES","1 DE SEPTIEMBRE","OPCIONES","2 DE SEPTIEMBRE",null,"SEPTIEMBRE",null,null,null,"1 DE SEPTIEMBRE","2 DE SEPTIEMBRE","5 DE SEPTIEMBRE","6 DE SEPTIEMBRE","7 DE SEPTIEMBRE","8 DE SEPTIEMBRE","9 DE SEPTIEMBRE","12 DE SEPTIEMBRE","13 DE SEPTIEMBRE","14 DE SEPTIEMBRE","15 DE SEPTIEMBRE","16 DE SEPTIEMBRE","19 DE SEPTIEMBRE","20 DE SEPTIEMBRE","21 DE SEPTIEMBRE","22 DE SEPTIEMBRE","23 DE SEPTIEMBRE","26 DE SEPTIEMBRE","27 DE SEPTIEMBRE","28 DE SEPTIEMBRE","29 DE SEPTIEMBRE","30 DE SEPTIEMBRE"]
["Entrada",null,"Entrada",null,"Entrada",null,"Entrada","WANTAN CON TAMARINDO ","Entrada","ENSALADA RUSA (SIN PAPA)"]
["A",null,"A",null,"A",null,"A","ARROZ CHAUFA DE POLLO Y CARNE ","A","POLLO SALTADO CON ARROZ",null,"OCTUBRE","3 DE OCTUBRE","4 DE OCTUBRE","5 DE OCTUBRE","6 DE OCTUBRE","7 DE OCTUBRE","10 DE OCTUBRE","11 DE OCTUBRE","12 DE OCTUBRE","13 DE OCTUBRE","14 DE OCTUBRE","17 DE OCTUBRE","18 DE OCTUBRE","19 DE OCTUBRE","20 DE OCTUBRE","21 DE OCTUBRE","24 DE OCTUBRE","25 DE OCTUBRE","26 DE OCTUBRE","27 DE OCTUBRE","28 DE OCTUBRE","31 DE OCTUBRE","30 DE AGOSTO","31 DE AGOSTO"]
["B",null,"B",null,"B",null,"B","CARAPULCRA GUISADA CON ARROZ ","B","AJÍ DE GALLINA CON ARROZ "]
["C",null,"C",null,"C",null,"C","POLLO A LA PLANCHA CON ARROZ CON VERDURAS","C","POLLO A LA PLANCHA CON SPAGUETTI A LO ALFREDO"]
["D",null,"D",null,"D",null,"D","ENSALADA ITALIANA CON POLLO EN TIRAS","D","ENSALADA ORIENTAL CON POLLITO A LA PLANCHA"]
["E",null,"E",null,"E",null,"E","POLLO A LA COCACOLA CON ARROZ PRIMAVERA","E","PIERNITAS DE POLLO CON PAPITAS"]
["V",null,"V",null,"V",null,"V","ARROZ CHAUFA VEGETARIANO ","V","SALTADO DE VERDURAS CON SOYA"]
["postre",null,"postre",null,"postre",null,"postre","FRUTA DE ESTACIÓN","postre","GELATINA"]
["refresco",null,"refresco",null,"refresco",null,"refresco","LIMONADA ","refresco","MARACUYÁ"]
["5 DE SEPTIEMBRE",null,"6 DE SEPTIEMBRE",null,"7 DE SEPTIEMBRE",null,"8 DE SEPTIEMBRE",null,"9 DE SEPTIEMBRE"]
["Entrada","ENSALADA BRUSCHETTA","Entrada","ENSALADA FRESCA","Entrada","PAPA A LA HUANCAINA","Entrada","ENSALADA DE PALTA","Entrada","ENSALADA FRESCA"]
["A","TALLARINES SALTADOS ORIENTALES CON RES","A","ARROZ A LA JARDINERA CON CARNE GUISADA","A","ARROZ CON POLLO ","A","SPAGHETTI EN SALSA ROJA CON POLLO","A","SECO DE RES CON ARROZ "]
["B","LENTEJITAS GUISADAS CON POLLO Y ARROZ PRIMAVERA","B","SPAGHETTI A LA BOLOGNESA ","B","FRIJOLES ROJOS BATIDOS CON RES","B","ARROZ TAPADO CON PLATANITO A LA PLANCHA ","B","GUISO DE POLLO CON ARROZ "]
["C","POLLO A LA PLANCHA CON ARROZ Y VERDURAS","C","POLLO A LA PLANCHA CON PURÉ DE PAPITA AMARILLA ","C","POLLO A LA PLANCHA CON PAPITAS","C","POLLO A LA PLANCHA CON ARROZ A LA JARDINERA ","C","LENTEJITAS GUISADAS CON POLLO A LA PLANCHA "]
["D","ENSALADA CÉSAR CON POLLO ","D","WRAP DE POLLO Y PALTA ","D","ENSALADA ORIENTAL CON POLLITO A LA PLANCHA ","D","ENSALADA DE ATÚN ","D","ENSALADA BRUSCHETTA CON PAVITA"]
["E","TORTILLAS DE ATÚN CON ARROZ Y VERDURAS","E","BISTECK CON CAMOTITOS ","E","CHICKEN FINGERS CON PURÉ DE BETARRAGA","E","POLLITO AL HORNO CON CHOCLITO Y ARROZ","E","PECHUGA BBQ CON ZANAHORIAS Y ARROZ"]
["V","TORTILLA DE VERDURAS CON SOYA Y ARROZ ","V","ARROZ CRIOLLO(ESTILO ARROZ CON POLLO)","V","ARVEJITAS VERDES CON HUEVITO A LA PLANCHA / ARROZ ","V","MILANESA VEGETARIANA CON PAPITAS ","V","FILETE VEGETARIANO CON SALSA DE VERDURAS Y ARROZ"]
["postre","FRUTA DE ESTACIÓN ","postre","MAZAMORRA MORADA","postre","GALLETAS NATURALES","postre","FLAN CON GELATINA","postre","MINI PYE DE MANZANA"]
["refresco","LIMONADA","refresco","CHICHA MORADA","refresco","LIMONADA","refresco","NARANJADA","refresco","MARACUYÁ"]
["12 DE SEPTIEMBRE",null,"13 DE SEPTIEMBRE",null,"14 DE SEPTIEMBRE",null,"15 DE SEPTIEMBRE",null,"16 DE SEPTIEMBRE"]
["Entrada","WANTAN CON TAMARINDO","Entrada","CHOCLITO CON QUESO","Entrada","HUEVITO RELLENO","Entrada","ENSALADA FRESCA","Entrada","ENSALADA DE COL"]
["A","ARROZ CHAUFA FUSIÓN CON POLLO ","A","POLLO AL SILLAO CON ARROZ PRIMAVERA","A","SPAGHETTI A LA CARBONARA CON POLLITO ","A","POLLO AL HORNO CON ARROZ CON VERDURAS","A","SECO DE RES CON ARROZ "]
["B","TRIGO GUISADO CON RES / ARROZ","B","CORDON BLEU DE POLLO CON ARROZ","B","ARROZ A LA JARDINERA CON GUISO DE RES","B","CARAPULCRA GUISADA CON RES","B","GUISO DE POLLO CON ARROZ "]
["C","POLLO A LA PLANCHA CON CAMOTES AL HORNO","C","POLLO A LA PLANCHA CON PAPAS DUQUESAS","C","POLLO A LA PLANCHA CON LENTEJITAS GUISADAS","C","POLLO A LA PLANCHA CON PURÉ DE PAPITA AMARILLA","C","POLLO A LA PLANCHA CON MACARRONES Y QUESO"]
["D","ENSALADA CÉSAR CON POLLO A LA PLANCHA","D","ENSALADA CRIOLLA CON POLLO A LA PLANCHA ","D","ENSALADA COBB CON POLLO A LA PLANCHA","D","PALTA RELLENA CON POLLO MECHADO ","D","ENSALADA RUSA CON PAVITA"]
["E","HUEVITOS EN SU NIDO CON PAPITAS","E","NUGGETS DE POLLO CON ARROZ PRIMAVERA","E","CHEESEBURGUER CON PAPITAS Y ENSALADA","E","PIERNITA CON YUQUITAS","E","PECHUGA BBQ CON ZANAHORIAS Y ARROZ"]
["V","CAIHUA RELLENA VEGETARIANA CON ARROZ","V","CAUSA TRIPLE VEGETARIANA","V","CHOCLITO SALTADO VEGETARIANO","V","TALLARIN SALTADO VEGETARIANO","V","FILETE VEGETARIANO CON SALSA DE VERDURAS Y ARROZ"]
["postre","MINI BOMBITA HL ","postre","MINI PIONONO CON MANJAR","postre","FRUTA DE ESTACIÓN","postre","GELATINA","postre","MINI PYE DE MANZANA"]
["refresco","LIMONADA","refresco","NARANJADA","refresco","CHICHA MORADA","refresco","MARACUYÁ ","refresco","NARANJADA"]
["19 DE SEPTIEMBRE",null,"20 DE SEPTIEMBRE",null,"21 DE SEPTIEMBRE",null,"22 DE SEPTIEMBRE",null,"23 DE SEPTIEMBRE"]
["Entrada","HUEVITO A LA RUSA","Entrada","PAN AL AJO","Entrada","BOLICAUSITAS","Entrada","ENSALADA MIXTA","Entrada","ENSALADA DE TOMATE"]
["A","SECO DE RES CON ARROZ","A","LASAGNA A LA BOLOGNESA","A","PEPIAN DE CHOCLO CON TROZOS DE POLLO CON ARROZ","A","ALBÓNDIGAS A LA NAPOLITANA","A","SPAGHETTI A LA HUANCAINA CON LOMITO AL JUGO "]
["B","POLLO A LA COCA COLA CON ARROZ ","B","PANAMITOS CON GUISITO DE POLLO","B","POLLITO SALTADO CON ARROZ","B","CAUCAU DE POLLO CON ARROZ","B","POLLO A LA MOSTAZA CON ARROZ"]
["C","POLLO A LA PLANCHA CON ARROZ A LA JARDINERA ","C","POLLO A LA PLANCHA CON ENSALADA CALIENTE","C","POLLO A LA PLANCHA CON ARVEJITAS PARTIDAS","C","POLLO A LA PLANCHA CON PAPITAS","C","POLLO A LA PLANCHA CON VERDURAS SALTEADAS Y ARROZ"]
["D","PALTA RELLENA CON VERDURAS Y POLLO","D","ENSALADA CRIOLLA CON POLLITO A LA PLANCHA ","D","ENSALADA RUSA CON PAVITA AL HORNO","D","TACO SALAD CON POLLO","D","ENSALADA WALDORF CON POLLO"]
["E","BISTECK CON PAPITAS","E","NUGGETS DE POLLO AL HORNO CON LENTEJAS ","E","FISH FINGERS CON ARROZ Y VERDURAS","E","POLLO ANTICUCHADO CON CHOCLITO","E","CHICKEN FINGERS CON VERDURAS SALTEADAS"]
["V","ARROZ CHAUFA VEGETARIANO","V","HAMBURGUESA VEGETARIANA CON ARROZ ","V","ARVEJITAS VERDES CON SALTADO VEGETARIANO","V","ESTOFADO VEGETARIANO CON ARROZ","V","COLIFLOR ARREBOSADA CON ARROZ"]
["postre","FRUTA DE ESTACIÓN ","postre","ARROZ CON LECHE","postre","GELATINA","postre","FLAN CON GELATINA","postre","BOMBITAS HL "]
["refresco","CHICHA MORADA","refresco","LIMONADA","refresco","MARACUYÁ","refresco","LIMONADA","refresco","NARANJADA"]
["26 DE SEPTIEMBRE",null,"27 DE SEPTIEMBRE",null,"28 DE SEPTIEMBRE",null,"29 DE SEPTIEMBRE",null,"30 DE SEPTIEMBRE"]
["Entrada","HUEVO RELLENO","Entrada","ENSALADA CAPRESSE","Entrada","TORTILLA ESPAÑOLA","Entrada","ENSALADA ORIENTAL ","Entrada","ENSALADA FRESCA"]
["A","BISTECK CON PAPAS DORADAS Y ARROZ PRIMAVERA","A","TALLARINES SALTADOS CON CARNE","A","ESTOFADO DE RES CON ARROZ","A","SPAGHETTI AL PESTO CON BISTECK ","A","PAPA RELLENA CON RES /VERDURAS"]
["B","SPAGHETTI A LO ALFREDO CON POLLITO EN CUBOS","B","POLLO AL SILLAO CON ARROZ PRIMAVERA","B","POLLITO ANTICUCHADO CON PAPAS AL HORNO","B","MILANESA DE PESCADO CON ARROZ CON VERDURAS","B","OLLUQUITOS GUISADOS CON RES"]
["C","FILETE DE POLLO A LA PLANCHA , ARROZ Y VERDURAS","C","FILETE DE POLLO A LA PLANCHA , ARROZ Y VERDURAS","C","POLLO A LA PLANCHA CON PURÉ DE PAPITA AMARILLA","C","POLLO A LA PLANCHA CON ENSALADA CALIENTE","C","POLLO A LA PLANCHA CON PAPAS HORNO"]
["D","CAUSA RELLENA DE VERDURAS Y POLLO ","D","ENSALADA DE CAIHUA CON POLLO A LA PLANCHA ","D","ENSALADA FRESCA CON POLLO A LA PLANCHA ","D","ENSALADA CÉSAR CON POLLO A LA PLANCHA","D","ENSALADA DE ATÚN"]
["E","MILANESA DE PESCADO CON ARROZ PRIMAVERA","E","POLLO CON PIÑA / ARROZ CHAUFA","E","BBQ WINGS CON PAPITAS","E","NUGGETS DE POLLO AL HORNO CON PAPITAS","E","PURÉ DE PAPITA AMARILLA CON POLLO AL HORNO"]
["V","GLUTEN CON SALSA DE VERDURAS Y ARROZ","V","SALTADO DE VAINITAS VEGETARIANO","V","TORTILLA VEGETARIANA CON ARROZ ","V","SPAGHETTI AL PESTO CON SOYA","V","LOCRO DE ZAPALLO"]
["postre","FRUTA DE ESTACIÓN","postre","GELATINA","postre","MINI PYE DE MANZANA","postre","QUEQUE DE ZANAHORIA","postre","FRUTA DE ESTACIÓN"]
["refresco","LIMONADA","refresco","CHICHA MORADA","refresco","NARANJADA","refresco","MARACUYÁ ","refresco","LIMONADA"]
["3 DE OCTUBRE",null,"4 DE OCTUBRE",null,"5 DE OCTUBRE",null,"6 DE OCTUBRE",null,"7 DE OCTUBRE"]
["Entrada","ENSALADA MIXTA","Entrada","ENSALADA DE PEPINO","Entrada","ENSALADA FRESCA","Entrada","ENSALADA DE TOMATE","Entrada","ENSALADA DE PALTA"]
["A","ARROZ CHAUFA MIXTO DE POLLO Y CARNE","A","LASAGNA A LA BOLOGNESA","A","SPAGHETTI EN SALSA ROJA CON POLLO ","A","ESTOFADO DE RES CON ARROZ ","A","PESCADO A LA PLANCHA CON ARROZ Y VERDURAS"]
["B","AJÍ DE GALLINA","B","CAUCAU DE POLLO ","B","VAINITAS SALTEADAS CON RES Y ARROZ","B","CHOCLO SALTADO CON ARROZ","B","LOMO SALTADO CON RES Y ARROZ "]
["C","POLLO A LA PLANCHA CON PAPITAS","C","POLLO A LA PLANCHA CON ARROZ CON VERDURAS","C","POLLO A LA PLANCHA CON PURÉ ROSADO","C","POLLO A LA PLANCHA CON CAMOTE DORADO","C","POLLO A LA PLANCHA CON ARROZ A LA JARDINERA"]
["D","ENSALADA CÉSAR CON POLLITO A LA PLANCHA","D","ENSALADA DE GARBANZOS CON ATÚN","D","ENSALADA CHEFF CON POLLITO ","D","ENSALADA DELICIA CON POLLITO ","D","ENSALADA PARRILLERA CON POLLO "]
["E","POLLITO TERIYAKI CON ARROZ ","E","POLLITO AL SILLAO CON ARROZ ","E","NUGGETS DE POLLO CON PURÉ DE PAPITA AMARILLA","E","POLLITO ANTICUCHADO CON PURÉ DE PAPITA AMARILLA","E","CHICKEN FINGERS CON PAPITAS"]
["V","SECO VEGETARIANO CON ARROZ","V","PAPA RELLENA VEGETARIANA ","V","ARROZ CHAUFA VEGETARIANO ","V","TRIGO GUISADO CON HUEVITO AL GRILL ","V","GARBANZOS CON ESPINACAS Y ARROZ "]
["postre","FRUTA DE ESTACIÓN ","postre","GELATINA","postre","ALFAJOR","postre","BOMBITA HL ","postre","FRUTA DE ESTACIÓN"]
["refresco","LIMONADA","refresco","NARANJADA","refresco","CHICHA MORADA","refresco","MARACUYÁ","refresco","LIMONADA"]
["10 DE OCTUBRE",null,"11 DE OCTUBRE",null,"12 DE OCTUBRE",null,"13 DE OCTUBRE",null,"14 DE OCTUBRE"]
["Entrada","ENSALADA FRESCA","Entrada","HUEVITO EN SALSA DE OCOPA","Entrada","MINI ENSALADA CÉSAR","Entrada","WANTAN CON TAMARINDO ","Entrada","ENSALADA DE VERDURAS"]
["A","MILANESA DE PESCADO CON ARROZ CON VERDURAS","A","FRIJOLES CON GUISITO DE POLLO ","A","OLLUQUITOS GUISADOS CON RES Y ARROZ BLANCO ","A","ARROZ CHAUFA DE POLLO Y CARNE ","A","SPAGHETTI AL PESTO CON BISTECK "]
["B","ARROZ A LA JARDINERA CON GUISITO DE RES ","B","POLLO A LA MOSTAZA CON ARROZ ","B","PAPA RELLENA DE POLLO CON ARROZ","B","CARAPULCRA GUISADA CON ARROZ ","B","POLLITO SALTADO CON ARROZ BLANCO "]
["C","POLLO A LA PLANCHA CON PURÉ DE ESPINACAS","C","POLLO A LA PLANCHA CON VERDURAS Y ARROZ ","C","POLLO A LA PLANCHA CON SPAGHETTI A LO ALFREDO","C","POLLO A LA PLANCHA CON ARROZ CON VERDURAS","C","POLLO A LA PLANCHA CON PAPAS DORADAS"]
["D","ENSALADA CAPRESSE CON POLLITO ","D","ENSALADA CÉSAR CON POLLO A LA PLANCHA ","D","ENSALADA RUSA CON PAVITA AL HORNO ","D","ENSALADA ITALIANA CON POLLO EN TIRAS","D","ENSALADA DE ATÚN "]
["E","POLLO AL SILLAO CON ARROZ CON VERDURAS","E","POLLO AL ROMERO CON ARROZ Y VERDURAS","E","TORTILLA DE ATÚN CON ARROZ PRIMAVERA","E","POLLO A LA COCACOLA CON ARROZ PRIMAVERA","E","POLLO ANTICUCHADO CON ARROZ "]
["V","SALTADO DE COLIFLOR VEGETARIANO CON ARROZ","V","TORTILLA DE COLIFLOR CON ARROZ ","V","ESTOFADO VEGETARIANO ","V","ARROZ CRIOLLO VEGETARIANO","V","PIZZA DE JAMÓN Y QUESO Y ENSALADITA FRESCA"]
["postre","GELATINA","postre","FRUTA DE ESTACIÓN ","postre","GELATINA CON FLAN ","postre","ARROZ CON LECHE","postre","QUEQUE DE FRUTAS"]
["refresco","LIMONADA","refresco","CHICHA MORADA","refresco","NARANJADA","refresco","LIMONADA ","refresco","MARACUYÁ "]
["17 DE OCTUBRE",null,"18 DE OCTUBRE",null,"19 DE OCTUBRE",null,"20 DE OCTUBRE",null,"21 DE OCTUBRE"]
["Entrada","TEQUEÑOS CON GUACAMOLE","Entrada","PAPA A LA HUANCAINA","Entrada","SOUFFLÉ DE VERDURAS","Entrada","MINI QUESADILLA","Entrada","ENSALADA DE BROCOLÍ"]
["A","POLLO AL HORNO CON PAPAS AL ROMERO","A","LENTEJITAS CON GUISITO DE RES","A","POLLO A LA OLLA CON ARROZ CON VERDURAS","A","POLLITO STROGONOFF CON ARROZ","A","SECO A LA NORTEÑA CON ARROZ "]
["B","HAMBURGUESA AL PLATO CON ARROZ","B","ARROZ CON POLLO ","B","POLLO A LA REINA CON ARROZ","B","GUISO DE CARNE CON ARROZ ","B","SALTADO DE COLIFLOR CON POLLITO Y ARROZ"]
["C","POLLO A LA PLANCHA CON ENSALADA CALIENTE ","C","POLLO A LA PLANCHA CON PAPITAS","C","POLLO A LA PLANCHA CON ARROZ A LA JARDINERA","C","POLLO A LA PLANCHA CON VERDURAS","C","POLLO A LA PLANCHA CON YUQUITAS DORADAS"]
["D","ENSALADA CON ACEITUNAS Y POLLO ","D","ENSALADA ORIENTAL CON POLLITO","D","ENSALADA DE CAIGUA CON POLLITO ","D","ENSALADA DE QUINUA CON POLLO EN CUBOS","D","PALTA A LA REINA CON POLLO"]
["E","MILANESA DE PESCADO CON ARROZ CON VERDURAS","E","PIZZADILLAS DE JAMÓN Y QUESO CON NACHOS","E","PIZZA CLÁSICA CON ENSALADITA FRESCA","E","NUGGETS DE POLLO CON PAPITAS","E","ARROZ CHAUFA CON POLLITO CHI JAU KAY"]
["V","GUISO VEGETARIANO CON ARROZ","V","HAMBURGUESA VEGETARIANA AL PLATO ","V","ARROZ TAPADO VEGETARIANO","V","PURÉ DE PAPITA AMARILLA CON GUISITO VEGETARIANO","V","SPAGHETTI AL PESTO"]
["postre","MINI PYE DE MANZANA ","postre","FRUTA DE ESTACIÓN ","postre","FLAN  ","postre","GELATINA ","postre","GALLETAS NATURALES"]
["refresco","LIMONADA","refresco","CHICHA MORADA","refresco","NARANJADA","refresco","MARACUYÁ ","refresco","AGUA MINERAL "]
["24 DE OCTUBRE",null,"25 DE OCTUBRE",null,"26 DE OCTUBRE",null,"27 DE OCTUBRE",null,"28 DE OCTUBRE"]
["Entrada","ENSALADA BRUSCHETTA","Entrada","SOLTERITO ","Entrada","ENSALADA CAPRESSE","Entrada","ENSALADA ORIENTAL","Entrada","PAN AL AJO "]
["A","TALLARINES SALTADOS ORIENTALES CON RES","A","CAIGUA RELLENA DE RES CON ARROZ ","A","TACU TACU CON SECO DE RES ","A","ESCABECHE DE POLLO CON ARROZ ","A","LOCRO DE ZAPALLO "]
["B","ALBONDIGAS CON ARROZ A LA JARDINERA","B","TRIGO GUISADO CON QUESITO Y TROZOS DE POLLITO Y ARROZ","B","POLLO A LA CASEROLA CON ARROZ ","B","POLLO CON PIÑA Y ARROZ CHAUFA","B","SPAGHETTI A LA BOLOGNESA"]
["C","POLLO A LA PLANCHA CON ARROZ Y VERDURAS","C","POLLO A LA PLANCHA CON VERDURAS","C","POLLO A LA PLANCHA CON ARROZ ","C","POLLO A LA PLANCHA CON PAPAS DORADAS","C","POLLO A LA PLANCHA CON ARROZ PRIMAVERA"]
["D","ENSALADA CÉSAR CON POLLO ","D","ENSALADA MIXTA CON POLLO A LA PLANCHA ","D","ENSALADA DE ESPINACA CON POLLO EN TIRAS","D","ENSALADA ORIENTAL CON POLLO ","D","ENSALADA RUSA CON PAVITA"]
["E","TORTILLAS DE ATÚN CON ARROZ Y VERDURAS","E","POLLO A LA COCACOLA CON ARROZ ","E","POLLO AL HORNO CON PURÉ ","E","MILANESA DE PESCADO CON ARROZ Y VERDURAS","E","MILANESA DE POLLO CON PAPITAS"]
["V","TORTILLA DE VERDURAS CON SOYA Y ARROZ ","V","CAUSA VEGETARIANA","V","SECO VEGETARIANO CON ARROZ ","V","SALTADO VEGETARIANO ","V","ARROZ CHAUFA VEGETARIANO"]
["postre","FRUTA DE ESTACIÓN ","postre","GALLETAS NATURALES","postre","GELATINA","postre","FRUTA DE ESTACIÓN","postre","GELATINA CON FLAN"]
["refresco","LIMONADA","refresco","CHICHA MORADA","refresco","NARANJADA","refresco","LIMONADA","refresco","MARACUYÁ"]
["31 DE OCTUBRE"]
["Entrada","TORTILLA ESPAÑOLA"]
["A","POLLO AL SILLAO CON ARROZ PRIMAVERA"]
["B","PAELLA DE POLLO Y RES"]
["C","POLLO A LA PLANCHA CON SPAGUETTI A LO ALFREDO"]
["D","ENSALADA COCIDA CON POLLITO"]
["E","PIERNITAS DE POLLO CON PAPITAS"]
["V","CAIGUA VEGETARIANA CON ARROZ"]
["postre","FRUTA DE ESTACIÓN"]
["refresco","MARACUYÁ"]